Cogmind - Beta 14 @@@ ROGUE MODE // 2025.01.17 @ 17:44:03 Player: Byrnorthil Result: Destroyed self with Grenade Launcher Performance ------------- Evolutions (0) 0 Regions Visited (1) 200 Robots Destroyed (49) 245 Value Destroyed (1039) 1039 Prototype IDs (2) 40 Alien Tech Used (0) 0 Bonus (53) 53 TOTAL SCORE: 1577 Bonus ------- High Alert Combat Kills 53 Cogmind --------- Core Integrity 0/250 Matter 238/300 Energy 100/100 System Corruption 4% Temperature Cool (0) Movement Hovering (80) Location -10/Materials Parts ------- > --- POWER (1) -------- (None) > --- PROPULSION (2) --- Backup Propulsion I > --- UTILITY (2) ------ Improved Targeting Computer Improved Targeting Computer > --- WEAPON (2) ------- Grenade Launcher Grenade Launcher > --- INVENTORY (5) ---- Backup Power I Grenade Launcher Grenade Launcher Peak State ------------ > --- POWER ------------ Ion Engine > --- PROPULSION ------- Light Treads Light Treads > --- UTILITY ---------- Improved Heat Sink High-capacity Storage Unit > --- WEAPON ----------- Medium Laser Small Laser > --- INVENTORY -------- Ion Engine Ion Engine Improved Heat Sink Small Storage Unit EM Pulse Gun Light Assault Rifle Grenade Launcher Mining Laser [Rating: 10] Favorites ----------- Power Ion Engine Engine Ion Engine Propulsion Light Treads Treads Light Treads Leg Aluminum Leg Hover Unit Backup Propulsion I Utility High-capacity Storage Unit Device Improved Heat Sink Storage High-capacity Storage Unit Processor Improved Targeting Computer Weapon Medium Laser Energy Gun Medium Laser Ballistic Gun Assault Rifle Launcher Grenade Launcher Build | -11 -10 ------- Run | Yrd Mat Slots Evolved . | . . Power . | . . Propulsion . | . . Utility . | . . Weapon . | . . Parts Attached 21 | 6 15 Power 2 | 1 1 Engine 2 | 1 1 Core . | . . Reactor . | . . Propulsion 6 | 2 4 Treads 3 | . 3 Leg 2 | 2 . Wheel . | . . Hover 1 | . 1 Flight . | . . Utility 7 | 1 6 Device 2 | . 2 Storage 3 | 1 2 Processor 2 | . 2 Hackware . | . . Protection . | . . Artifact . | . . Weapon 6 | 2 4 Energy Gun 2 | . 2 Energy Cannon . | . . Ballistic Gun 2 | 2 . Ballistic Cannon . | . . Launcher 2 | . 2 Special Weapon . | . . Impact Weapon . | . . Slashing Weapon . | . . Piercing Weapon . | . . Special Melee Weapon . | . . Unidentified Prototypes . | . . Parts Lost 5 | . 5 Power 1 | . 1 Propulsion . | . . Utility 2 | . 2 Weapon 2 | . 2 Highest Loss Streak 2 | . 2 To Critical Strikes . | . . Average Slot Usage (%) 87 | . 87 Engine 9 | . 9 Treads 20 | . 20 Leg 1 | . 1 Hover 2 | . 2 Device 8 | . 8 Storage 10 | . 10 Processor 6 | . 6 Energy Gun 15 | . 15 Ballistic Gun 3 | . 3 Launcher 7 | . 7 Peak Build Rating 10 | 6 10 Average Rating 7 | 4 7 On Entrance 3 | . 6 Naked Turns . | . . Heaviest Build 50 | 13 50 Greatest Support 40 | 20 40 Greatest Overweight (x) 2 | . 2 Average Overweight (x) . | . . Largest Inventory Capacity 20 | 8 20 Average Capacity 14 | 6 14 Most Carried 9 | 4 9 Average Carried 6 | 2 6 Final Capacity 8 | 8 5 Final Carried 4 | 4 3 Class Distribution -------------------- 100% | Mutant Dominant Class ---------------- Mutant | -10/Materials Resources | -11 -10 ----------- Run | Yrd Mat Matter Collected 1197 | 171 1026 Remotely 312 | . 312 Salvage Created 1150 | . 1150 Parts 63 | . 63 Haulers Intercepted 2 | . 2 Recyclers Shooed 2 | . 2 Parts Field Recycled . | . . Retrieved Matter . | . . Parts Self-Destructed . | . . Prevented . | . . Kills | -11 -10 ------- Run | Yrd Mat Combat Hostiles Destroyed 21 | . 21 Guns 9 | . 9 AOE 11 | . 11 Classes Destroyed 10 | . 10 Worker 13 | . 13 Builder 3 | . 3 Tunneler 1 | . 1 Hauler 2 | . 2 Recycler 4 | . 4 Mechanic 1 | . 1 Operator 1 | . 1 Watcher 3 | . 3 Swarmer 1 | . 1 Grunt 20 | . 20 Best Kill Streak 5 | . 5 Combat Bots Only 3 | . 3 Max Kills in Single Turn 2 | . 2 Gunslinging . | . . Exploded 2 | . 2 Melee . | . . Uniques/NPCs Destroyed . | . . Combat | -11 -10 -------- Run | Yrd Mat Hostile Shots Fired 105 | . 105 Missed 39 | . 39 Damage Taken 1163 | . 1163 Core 250 | . 250 Absorbed by Shields . | . . Regen/Repaired (Parts) 121 | . 121 Core Remaining (%) 100 | 100 . Volleys Fired 124 | . 124 Largest 2 | . 2 Hottest 90 | . 90 Shots Fired 222 | . 222 Gun 153 | . 153 Cannon . | . . Launcher 69 | . 69 Special . | . . Kinetic 54 | . 54 Thermal 99 | . 99 Explosive 69 | . 69 Electromagnetic . | . . Robot Hit Streak 10 | . 10 Robot Miss Streak 4 | . 4 Penetration Max . | . . Secondary Targets 1 | . 1 Max Gunslinging Chain 1 | . 1 Shots Hit Robots 120 | . 120 Core Hits 80 | . 80 Critical Kills 1 | . 1 Critical Parts Destroyed . | . . Critical Strikes 9 | . 9 Burn 8 | . 8 Destroy 1 | . 1 Melee Attacks . | . . Impact . | . . Slashing . | . . Piercing . | . . Sneak Attacks . | . . Combat Hostiles . | . . Follow-up Attacks . | . . Damage Inflicted 3193 | . 3193 Guns 1146 | . 1146 Cannons . | . . Explosions 1982 | . 1982 Melee . | . . Ramming 65 | . 65 Kinetic 422 | . 422 Thermal 724 | . 724 Explosive 1982 | . 1982 Electromagnetic . | . . Impact . | . . Slashing . | . . Piercing . | . . Highest Corruption 4 | . 4 Average Corruption 2 | . 2 Corruption Purged . | . . Corruption Blocked . | . . Effects 30 | . 30 Message Errors 8 | . 8 Matter Fused 4 | . 4 Heat Flow Errors 5 | . 5 Energy Discharges 6 | . 6 Data Loss (minor) 3 | . 3 Data Loss (major) 2 | . 2 Weapon Failures 2 | . 2 Overload Shots . | . . Overflow Damage 64 | . 64 Projectiles . | . . Explosions 64 | . 64 Melee . | . . Knockbacks . | . . Impact . | . . Kinetic . | . . Secondary . | . . Self-Inflicted Damage 364 | . 364 Shots 11 | . 11 Rammed 9 | . 9 Targets Rammed 10 | . 10 Kicked . | . . Crushed 1 | . 1 Highest Temperature 244 | . 244 Average Temperature 91 | . 91 Received Heat Transfer 483 | . 483 Siege Activations . | . . Robots Corrupted . | . . Combat Hostiles . | . . Parts Fried . | . . Impact Corruptions . | . . Robots Melted 1 | . 1 Combat Hostiles 1 | . 1 Parts Melted 6 | . 6 Heat Transferred 2632 | . 2632 Parts Sabotaged . | . . Parts Stolen . | . . Parts Stripped . | . . Power Chain Reactions . | . . Alert | -11 -10 ------- Run | Yrd Mat Peak Influence 713 | . 713 Initial . | . . Average 157 | . 162 Maximum Alert Level 3 | . 3 Low Security (%) 79 | 100 78 Level 1 10 | . 10 Level 2 10 | . 10 Level 3 . | . . Level 4 . | . . Level 5 . | . . High Security . | . . Max Security . | . . Squads Dispatched 7 | . 7 Investigation 6 | . 6 Extermination . | . . Reinforcement 1 | . 1 Assault . | . . Garrison . | . . Intercept . | . . Searches Triggered . | . . Construction Impeded . | . . Haulers Reinforced . | . . Active Scanning Responses . | . . Cargo Convoy Interrupts . | . . Stealth | -11 -10 --------- Run | Yrd Mat Distress Signals 3 | . 3 Communications Jammed . | . . Distress Signals . | . . Times Spotted 34 | . 34 Peak Tracking Total 4 | . 4 Tactical Retreats 1 | . 1 Traps | -11 -10 ------- Run | Yrd Mat Traps Triggered 2 | . 2 Indirectly . | . . Trap Hack Attempts . | . . Triggered . | . . Disarmed . | . . Reprogrammed . | . . Reused . | . . Traps Extracted . | . . Installed . | . . Triggered . | . . Machines | -11 -10 ---------- Run | Yrd Mat Machines Disabled 20 | . 20 Max in Single Turn 3 | . 3 Machines Repaired . | . . Machines Dismantled . | . . Machines Sabotaged . | . . Overloaded Fab Kills . | . . Hacking | -11 -10 --------- Run | Yrd Mat Machines Accessed 8 | . 8 Terminals 5 | . 5 Fabricators . | . . Repair Stations 1 | . 1 Recycling Units 2 | . 2 Scanalyzers . | . . Garrison Access . | . . Total Hacks 26 | . 26 Successful 14 | . 14 Failed 12 | . 12 Catastrophic 3 | . 3 Database Lockouts . | . . Manual 20 | . 20 Terminals 19 | . 19 Fabricators . | . . Repair Stations 2 | . 2 Recycling Units 5 | . 5 Scanalyzers . | . . Garrison Access . | . . Terminal Hacks 2 | . 2 Prototype ID Bank 1 | . 1 Terminal Index 1 | . 1 Fabricator Hacks . | . . Repair Station Hacks 2 | . 2 Scan Component 1 | . 1 Repair 1 | . 1 Recycling Unit Hacks 2 | . 2 Retrieve Components 2 | . 2 Scanalyzer . | . . Garrison Access Hacks . | . . Unauthorized Hacks 8 | . 8 Terminals 6 | . 6 Botnet 2 | . 2 Skim 3 | . 3 Sabotage 1 | . 1 Fabricators . | . . Repair Stations . | . . Recycling Units 2 | . 2 Tunnel 2 | . 2 Scanalyzers . | . . Garrison Access . | . . Data Cores Recovered . | . . Used . | . . Hacking Detections 7 | . 7 Full Trace Events 3 | . 3 Feedback Events 1 | . 1 Corruption 1 | . 1 Feedback Blocked . | . . Robot Schematics Acquired . | . . Robots Built . | . . Authchips . | . . Time . | . . Total Robot Build Rating . | . . Part Schematics Acquired . | . . Parts Built . | . . Authchips . | . . Time . | . . Total Part Build Rating . | . . Parts Repaired 1 | . 1 Time 26 | . 26 Parts Recycled . | . . Recycled Matter . | . . Retrieved Matter . | . . Retrieved Components 20 | . 20 Parts Scanalyzed . | . . Part Schematics Acquired . | . . Parts Damaged . | . . Bothacking | -11 -10 ------------ Run | Yrd Mat Used RIF Installer . | . . Robots Hacked . | . . Non-combat . | . . Combat . | . . Robot Hacks Applied . | . . Relay Couplers Released . | . . Fabnet Peak Effective % . | . . Robots Rewired . | . . Allies Hacked . | . . Hacks Repelled . | . . Allies | -11 -10 -------- Run | Yrd Mat Total Allies . | . . Largest Group . | . . Highest-Rated Group . | . . Highest-Rated Ally . | . . Total Orders . | . . Ally Attacks . | . . Total Damage . | . . Kills . | . . Allies Corrupted . | . . Allies Melted . | . . Intel | -11 -10 ------- Run | Yrd Mat Robot Analysis Total . | . . Derelict Logs Recovered . | . . Drone Launches . | . . Drone Recoveries . | . . Exploration | -11 -10 ------------- Run | Yrd Mat Turns Passed 2222 | 68 2154 Spaces Moved 1155 | 48 1107 Core 178 | 3 175 Treads 548 | . 548 Legs 103 | 45 58 Wheels . | . . Hover 326 | . 326 Flight . | . . Fastest Speed 50 | 50 50 Average Speed 152 | 115 153 Slowest Speed 320 | 120 320 Overloaded Moves . | . . Propulsion Burnouts . | . . Robots Hopped . | . . Cave-ins Triggered . | . . Exploration Rate (%) 50 | 4 97 Regions Visited 1 Branch Regions . Pre-discovered Areas 2 | . 2 Known Exits Taken . | . . Unknown Exits Taken 1 | 1 . Scrap Searched . | . . Spaces Dug 6 | . 6 Terrain Destroyed 311 | . 311 Melee . | . . Projectile . | . . AOE 311 | . 311 Terrain Rammed 2 | . 2 Walls Destroyed . | . . Machines Disabled . | . . Actions | -11 -10 --------- Run | Yrd Mat Total 1373 | 57 1316 Wait 36 | . 36 Move 1154 | 47 1107 Hop . | . . Pick Up 15 | 4 11 Fast Attach 12 | 6 6 Attach 3 | . 3 Detach 1 | . 1 Swap 6 | . 6 Drop 10 | . 10 Fire 124 | . 124 Melee . | . . Ram 2 | . 2 Kick . | . . Crush 10 | . 10 Escape Stasis . | . . Rewire . | . . Trap . | . . Miscellaneous . | . . Route ------- -11/Scrapyard -10/Materials (discovered 4 exits: [*Mat x3] / [*Min]) History --------- Turn | Location | Event 4 | -11/Scrapyard | Discovered new exit (range 15) 69 | -11/Scrapyard | Entered Materials 306 | -10/Materials | Build established: Mutant 527 | -10/Materials | Discovered new exit (range 5) 636 | -10/Materials | Core integrity fell below 50% 1008 | -10/Materials | Discovered new exit (range 16) 1111 | -10/Materials | Discovered new exit (range 16) 1202 | -10/Materials | Repaired Lgt. Treads 1403 | -10/Materials | Discovered new exit (range 11) 1481 | -10/Materials | Core integrity fell below 20% 2223 | -10/Materials | Destroyed self with Grenade Launcher Last Messages --------------- 02101_ U-05 Engineer destroyed. 02101_ K-01 Serf destroyed. 02113_ The unstable cave ceiling collapses. 02115_ Acquired 35 matter. 02116_ Acquired 22 matter. 02131_ Acquired 37 matter. 02133_ Triggered Alarm Trap. 02133_ An alarm sounds. 02133_ ALERT: Alarm triggered, dispatching investigation squad. 02141_ W#6VLXJ 02153_ Acquired 60 matter. 02174_ System corrupted: Matter fused (-10). 02189_ K-01 Serf collects debris. 02190_ K-01 Serf destroyed. 02193_ Electrolysis Chamber disabled. 02205_ Acquired 8 matter. 02209_ The unstable cave ceiling collapses. 02215_ U-05 Engineer lays Concrete. 02223_ S-10 Pest destroyed. Map ----- +----------------------------------------------------+ | ####### ! * ]]#### """ # | | # #= ### ## """ # | | + # = ## # | | # # T ## # | | ####### # # # | | ####??##### " ## # | | #= ######### ## " ## # | | ## #?# "# # # | | ! ! #?#### ### ############ ## | | #????###?# = #?# | | #????????# #### | | #### #????????# < | | # ## #????????# # #### ## ###### | | ]#] ##????????# #??# ########### | | # #% [##????????# ##??# #!!=**!* =# | | ### # *##????????## ### ##+##### =+!!!==[! # | | ??## [[##?????????# ## ## # !==!"Y" # | | ##?## |##?????????# ## ## # ==""" # | | ## ##???????### ## ! !## ####+###### | | % ## ##???##?#### ## ## #??# #?#### | | ## ##### ## ## ##+######### #??# #?# | | "" ## ## # ###### #?????# #??# #?# "" | | "" ## ## # ####### #### ### "" | | "" ## ## # "T" # "" | | ## # # # + "" | | ## ## #######@ # "" | | +### # # #???# " " #######+##+# | | # ###??? """ #???# # | | + ####### """ #???# """ #### | | # # """" #???# """ #??? | | #### ## " " #???# """ #??? | | ???###+## ######### ##??# ###? | | ???? # # #### " #? | | ?? # # [% ### ## | | ?# """ """ # """ # # # | | ?# """ """ # """ #^ * | | ?# """ """ # """ + # # = [ | | ?# """ """ # # ####### s ## | | ?#??"" """ # """ ## #####/######## ! | | ????? ? # """ ## ###?# #??# " = | | ?????"T"??## """ ## #???# #??## | | ?????"""???? #######???#!!! ###### ## | | ?????###???# #???????#""!!! + | | ???????????########????????#" !! ####+#### | | ???????????????????????????#"" # + | | ???????????????????????????### # =[ #### | | ?????????????????????????????# # [[ #??? | | ?????????????????????????????# * #! #??? | | ?????????????????????????????##################??? | | | +----------------------------------------------------+ Best States ------------- Heat Dissipation 39 Energy Generation 10 Energy Capacity 250 Matter Stores 300 Matter Capacity 300 Sight Range 16 Terrain Scan Density 10 Evasion (%) 55 Targeting Accuracy 12 Recoil Reduction 2 Item Schematics ----------------- None Robot Schematics ------------------ None Fabricated ------------ Nothing Alien Tech Used ----------------- None Achievements -------------- None Challenges ------------ None Game ------ Seed DeepAbsorptionRigger Manual? 0 Play Time 00:18:52 Cumulative 201.0 hours Start 2025.01.17 @ 17:27:07 End 2025.01.17 @ 17:44:03 Sessions 1 Manual Loads 0 Difficulty Rogue Special Mode None Game No. 64 Rogue 64 Adventurer 0 Explorer 0 Win Type - Total 3 Types 2/0/1/0/0/0/0/0/0 Lore% 65 Gallery% 74 Achievement% 63 Wizard Run 0 Options --------- Layout 0 ASCII 0 Keyboard 1 Movement Arrows Keybinds 1 Fullscreen 2 Font 36/Terminus++ Map View 76x50 Zoom Use 0% Tactical HUD 1 Map Filters NONE Filters NONE Steam 1 RUN: 2aa2112c-d8d2-44b8-9dab-1be7f4398079